fUST/lending_fUST_20250613
["ID","MTS","AMOUNT","RATE_DAILY","PERIOD"]
[365639529,1749816637876,-174.83523384,0.00021095,4]
[365639530,1749816637888,-440.0,0.00021095,4]
[365639531,1749816637897,-440.0,0.00021095,4]
[365639532,1749816637907,-460.0,0.00021095,4]
[365639533,1749816637916,-460.0,0.00021095,4]
[365639534,1749816637926,-460.0,0.00021095,4]
[365639535,1749816637936,-460.0,0.00021095,4]
[365639536,1749816637952,-574.01,0.00021095,4]
[365639537,1749816637962,-440.0,0.00021095,4]
[365639538,1749816637971,-443.99697179,0.00021095,4]
[365639539,1749816637981,-460.0,0.00021095,4]
[365639540,1749816637991,-433.69710891,0.00021095,4]
[365639541,1749816638001,-451.47662381,0.00021095,4]
[365639542,1749816638011,-460.0,0.00021095,4]
[365639543,1749816638021,-440.0,0.00021095,4]
[365639545,1749816638031,-440.0,0.00021095,4]
[365639547,1749816638040,-1531.91,0.00021095,4]
[365639549,1749816638050,-460.0,0.00021095,4]
[365639551,1749816638060,-460.0,0.00021095,4]
[365639553,1749816638070,-440.0,0.00021095,4]
[365639554,1749816638080,-440.0,0.00021095,4]
[365639555,1749816638090,-460.0,0.00021095,4]
[365639556,1749816638101,-443.27614351,0.00021095,4]
[365639557,1749816638110,-402.69193001,0.00021095,4]
[365639558,1749816638120,-441.92071793,0.00021095,4]
[365639559,1749816638130,-441.51555385,0.00021095,4]
[365639560,1749816638141,-460.0,0.00021095,4]
[365639561,1749816638150,-380.0,0.00021095,4]
[365639563,1749816638161,-460.0,0.00021095,4]
[365639565,1749816638171,-440.0,0.00021095,4]
[365639567,1749816638180,-440.0,0.00021095,4]
[365639569,1749816638189,-484.01,0.00021095,4]
[365639571,1749816638198,-446.67726702,0.00021095,4]
[365639573,1749816638207,-420.20103864,0.00021095,4]
[365639575,1749816638217,-440.58380918,0.00021095,4]
[365639577,1749816638226,-430.0,0.00021095,4]
[365639579,1749816638235,-431.09322919,0.00021095,4]
[365639582,1749816638252,-460.0,0.00021095,4]
[365639584,1749816638264,-305.89263031,0.00021095,4]
[365639586,1749816638274,-433.53561168,0.00021095,4]
[365639588,1749816638284,-440.0,0.00021095,4]
[365639590,1749816638294,-440.0,0.00021095,4]
[365639592,1749816638303,-460.0,0.00021095,4]
[365639594,1749816638313,-431.29523304,0.00021095,4]
[365639596,1749816638323,-453.15769605,0.00021095,4]
[365639598,1749816638332,-460.0,0.00021095,4]
[365639600,1749816638343,-460.0,0.00021095,4]
[365639602,1749816638352,-440.0,0.00021095,4]
[365639604,1749816638362,-440.0,0.00021095,4]
[365639607,1749816638372,-499.56898753,0.00021095,4]
[365639608,1749816638383,-441.0710439,0.00021095,4]
[365639610,1749816638393,-460.0,0.00021095,4]
[365639613,1749816638403,-460.0,0.00021095,4]
[365639615,1749816638413,-237.13444223,0.00021095,4]
[365639617,1749816638424,-460.0,0.00021095,4]
[365639619,1749816638434,-430.0,0.00021095,4]
[365639621,1749816638444,-460.0,0.00021095,4]
[365639623,1749816638453,-460.0,0.00021095,4]
[365639625,1749816638463,-460.0,0.00021095,4]
[365639627,1749816638473,-460.0,0.00021095,4]
[365639629,1749816638483,-444.98050192,0.00021095,4]
[365639631,1749816638493,-596.19,0.00021095,4]
[365639633,1749816638503,-433.19450387,0.00021095,4]
[365639635,1749816638512,-460.0,0.00021095,4]
[365639637,1749816638522,-432.66592538,0.00021095,4]
[365639639,1749816638532,-460.0,0.00021095,4]
[365639642,1749816638542,-500.0,0.00021095,4]
[365639644,1749816638552,-400.53216153,0.00021095,4]
[365639646,1749816638562,-500.0,0.00021095,4]
[365639648,1749816638572,-500.0,0.00021095,4]
[365639650,1749816638582,-500.0,0.00021095,4]
[365639652,1749816638592,-500.0,0.00021095,4]
[365639654,1749816638603,-500.0,0.00021095,4]
[365639656,1749816638613,-460.0,0.00021095,4]
[365639658,1749816638622,-431.54275924,0.00021095,4]
[365639660,1749816638632,-460.0,0.00021095,4]
[365639662,1749816638646,-440.0,0.00021095,4]
[365639664,1749816638656,-430.0,0.00021095,4]
[365639666,1749816638667,-460.0,0.00021095,4]
[365639668,1749816638677,-460.0,0.00021095,4]
[365639670,1749816638687,-443.95354744,0.00021095,4]
[365639672,1749816638697,-460.0,0.00021095,4]
[365639677,1749816638708,-460.0,0.00021095,4]
[365639680,1749816638719,-442.42049921,0.00021095,4]
[365639681,1749816638729,-295.354121,0.00021095,4]
[365639684,1749816638739,-460.0,0.00021095,4]
[365639688,1749816638750,-440.0,0.00021095,4]
[365639690,1749816638761,-400.0,0.00021095,4]
[365639692,1749816638770,-585.41,0.00021095,4]
[365639694,1749816638780,-430.0,0.00021095,4]
[365639696,1749816638789,-460.0,0.00021095,4]
[365639698,1749816638799,-434.13411268,0.00021095,4]
[365639700,1749816638810,-460.0,0.00021095,4]
[365639702,1749816638820,-460.0,0.00021095,4]
[365639704,1749816638829,-468.46227964,0.00021095,4]
[365639706,1749816638839,-344.99139399,0.00021095,4]
[365639708,1749816638849,-446.82786114,0.00021095,4]
[365639710,1749816638859,-460.0,0.00021095,4]
[365639712,1749816638868,-460.0,0.00021095,4]
[365639714,1749816638878,-436.24527879,0.00021095,4]
[365639716,1749816638890,-460.0,0.00021095,4]
[365639718,1749816638899,-460.0,0.00021095,4]
[365639720,1749816638909,-440.0,0.00021095,4]
[365639722,1749816638918,-440.0,0.00021095,4]
[365639724,1749816638928,-305.92667444,0.00021095,4]
[365639726,1749816638938,-460.0,0.00021095,4]
[365639729,1749816638948,-460.0,0.00021095,4]
[365639730,1749816638957,-438.76416126,0.00021095,4]
[365639733,1749816638966,-236.91088962,0.00021095,4]
[365639735,1749816638976,-440.0,0.00021095,4]
[365639737,1749816638986,-460.0,0.00021095,4]
[365639739,1749816638996,-405.58832494,0.00021095,4]
[365639741,1749816639006,-4164.15,0.00021095,4]
[365639743,1749816639015,-430.0,0.00021095,4]
[365639745,1749816639024,-460.0,0.00021095,4]
[365639747,1749816639033,-446.23044546,0.00021095,4]
[365639749,1749816639042,-435.77482112,0.00021095,4]
[365639751,1749816639052,-433.0762285,0.00021095,4]
[365639753,1749816639061,-460.0,0.00021095,4]
[365639755,1749816639071,-440.0,0.00021095,4]
[365639757,1749816639081,-455.0531195,0.00021095,4]
[365639759,1749816639090,-460.0,0.00021095,4]
[365639761,1749816639099,-440.0,0.00021095,4]
[365639763,1749816639108,-460.0,0.00021095,4]
[365639765,1749816639117,-434.77837398,0.00021095,4]
[365639767,1749816639127,-446.04117203,0.00021095,4]
[365639769,1749816639138,-372.02518328,0.00021095,4]
[365639771,1749816639148,-796.34,0.00021095,4]
[365639773,1749816639157,-460.0,0.00021095,4]
[365639775,1749816639166,-443.52433033,0.00021095,4]
[365639777,1749816639175,-440.94127617,0.00021095,4]
[365639779,1749816639184,-430.0,0.00021095,4]
[365639781,1749816639194,-460.0,0.00021095,4]
[365639783,1749816639203,-445.47548911,0.00021095,4]
[365639785,1749816639212,-460.0,0.00021095,4]
[365639787,1749816639222,-1005.96,0.00021095,4]
[365639789,1749816639231,-427.06822049,0.00021095,4]
[365639791,1749816639240,-435.1653506,0.00021095,4]
[365639793,1749816639249,-431.21507499,0.00021095,4]
[365639795,1749816639259,-460.0,0.00021095,4]
[365639797,1749816639268,-431.58396656,0.00021095,4]
[365639799,1749816639277,-402.14937265,0.00021095,4]
[365639801,1749816639286,-444.58987274,0.00021095,4]
[365639803,1749816639296,-440.0,0.00021095,4]
[365639805,1749816639305,-460.0,0.00021095,4]
[365639807,1749816639315,-460.0,0.00021095,4]
[365639809,1749816639325,-440.0,0.00021095,4]
[365639811,1749816639334,-440.0,0.00021095,4]
[365639813,1749816639343,-440.0,0.00021095,4]
[365639815,1749816639353,-440.0,0.00021095,4]
[365639817,1749816639362,-432.37513153,0.00021095,4]
[365639819,1749816639372,-932.64,0.00021095,4]
[365639821,1749816639381,-430.0,0.00021095,4]
[365639823,1749816639392,-448.87370198,0.00021095,4]
[365639825,1749816639401,-440.0,0.00021095,4]
[365639827,1749816639412,-440.0,0.00021095,4]
[365639829,1749816639421,-440.0,0.00021095,4]
[365639831,1749816639431,-440.0,0.00021095,4]
[365639833,1749816639442,-460.0,0.00021095,4]
[365639835,1749816639451,-1259.77,0.00021095,4]
[365639837,1749816639461,-440.0,0.00021095,4]
[365639839,1749816639471,-460.0,0.00021095,4]
[365639851,1749816639580,-460.0,0.00021095,4]
[365639853,1749816639591,-439.71700316,0.00021095,4]
[365639855,1749816639602,-440.0,0.00021095,4]
[365639857,1749816639613,-431.6535325,0.00021095,4]
[365639860,1749816639623,-1986.29,0.00021095,4]
[365639862,1749816639633,-460.0,0.00021095,4]
[365639864,1749816639645,-918.57,0.00021095,4]
[365639866,1749816639655,-460.0,0.00021095,4]
[365639868,1749816639664,-440.0,0.00021095,4]
[365639870,1749816639674,-431.5578925,0.00021095,4]
[365639872,1749816639684,-460.0,0.00021095,4]
[365639874,1749816639693,-198.74,0.00021095,4]
[365639876,1749816639702,-460.0,0.00021095,4]
[365639878,1749816639713,-402.68092736,0.00021095,4]
[365639880,1749816639727,-430.24,0.00021095,4]
[365639882,1749816639736,-460.0,0.00021095,4]
[365639884,1749816639746,-460.0,0.00021095,4]
[365639886,1749816639755,-460.0,0.00021095,4]
[365639888,1749816639766,-460.0,0.00021095,4]
[365639890,1749816639775,-1111.62,0.00021095,4]
[365639892,1749816639785,-434.06058775,0.00021095,4]
[365639894,1749816639797,-500.74427573,0.00021095,4]
[365639896,1749816639806,-475.04401333,0.00021095,4]
[365639898,1749816639815,-444.29567814,0.00021095,4]
[365639900,1749816639825,-460.0,0.00021095,4]
[365639903,1749816639834,-460.0,0.00021095,4]
[365639905,1749816639843,-342.48808279,0.00021095,4]
[365639907,1749816639853,-460.0,0.00021095,4]
[365639909,1749816639862,-2167.54,0.00021118,2]
[365639911,1749816639871,-1680.0,0.00021123,2]
[365639913,1749816639881,-1760.29086515,0.00021245,4]
[365639915,1749816639893,-500.0,0.0002125,2]
[365639917,1749816639902,-500.0,0.0002125,2]
[365639919,1749816639912,-323.31877336,0.0002125,2]
[365639921,1749816639921,-500.0,0.0002125,2]
[365639923,1749816639931,-500.0,0.0002125,2]
[365639925,1749816639941,-500.0,0.0002125,2]
[365639927,1749816639950,-500.0,0.0002125,2]
[365639929,1749816639961,-500.0,0.0002125,2]
[365639931,1749816639970,-500.0,0.0002125,2]
[365639933,1749816639979,-500.22395642,0.0002125,2]
[365639936,1749816639989,-500.0,0.0002128,2]
[365639938,1749816639998,-11537.72206855,0.00021297,2]
[365639940,1749816640007,-500.0,0.00021368,4]
[365639943,1749816640018,-626.15,0.00021368,4]
[365639945,1749816640027,-1069.92,0.00021368,2]
[365639947,1749816640036,-1069.92,0.00021368,2]
[365639950,1749816640047,-500.0,0.00021368,4]
[365639952,1749816640056,-158.13,0.00021369,4]
[365639954,1749816640066,-410.0,0.00021369,4]
[365639956,1749816640076,-502.18106817,0.00021369,4]
[365639958,1749816640085,-420.0,0.00021369,4]
[365639960,1749816640095,-460.0,0.00021369,4]
[365639962,1749816640104,-191.56649641,0.00021369,4]
[365639964,1749816640115,-420.0,0.00021369,4]
[365639966,1749816640124,-460.0,0.00021369,4]
[365639968,1749816640133,-460.0,0.00021369,4]
[365639970,1749816640144,-460.0,0.00021369,4]
[365639972,1749816640153,-460.0,0.00021369,4]
[365639974,1749816640162,-360.0,0.00021369,4]
[365639976,1749816640171,-421.52746359,0.00021369,2]
[365639978,1749816640180,-414.11085541,0.00021369,4]
[365639980,1749816640190,-338.54206887,0.00021369,4]
[365639982,1749816640199,-460.0,0.00021369,4]
[365639984,1749816640209,-460.0,0.00021369,4]
[365639986,1749816640219,-460.0,0.00021369,4]
[365639988,1749816640229,-561.0,0.00021369,4]
[365639990,1749816640239,-460.0,0.00021369,4]
[365639992,1749816640248,-513.87,0.00021369,4]
[365639994,1749816640258,-460.0,0.00021369,4]
[365639996,1749816640267,-460.0,0.00021369,2]
[365639998,1749816640277,-460.0,0.00021369,4]
[365640000,1749816640287,-460.0,0.00021369,4]
[365640002,1749816640299,-460.0,0.00021369,4]
[365640004,1749816640309,-460.0,0.00021369,4]
[365640006,1749816640319,-460.0,0.00021369,4]
[365640009,1749816640329,-460.0,0.00021369,4]
[365640011,1749816640339,-460.0,0.00021369,4]
[365640012,1749816640348,-440.0,0.00021369,4]
[365640015,1749816640358,-460.0,0.00021369,4]
[365640017,1749816640367,-460.0,0.00021369,4]
[365640018,1749816640377,-460.0,0.00021369,4]
[365640021,1749816640386,-1771.57,0.00021369,4]
[365640023,1749816640397,-460.0,0.00021369,4]
[365640025,1749816640407,-358.72962199,0.00021369,4]
[365640026,1749816640416,-410.00254982,0.00021369,4]
[365640028,1749816640426,-460.0,0.00021369,4]
[365640030,1749816640436,-460.0,0.00021369,4]
[365640032,1749816640446,-460.0,0.00021369,4]
[365640034,1749816640455,-460.0,0.00021369,4]
[365640036,1749816640465,-500.0,0.00021369,4]
[365640038,1749816640475,-165.47593339,0.00021369,4]
[365640040,1749816640485,-460.0,0.00021369,4]
[365640042,1749816640495,-257.11373812,0.00021369,4]
[365640044,1749816640504,-440.0,0.00021369,4]
[365640046,1749816640514,-460.0,0.00021369,4]
[365640048,1749816640524,-460.0,0.00021369,4]
[365640050,1749816640534,-460.0,0.00021369,4]
[365640052,1749816640543,-460.0,0.00021369,4]
[365640054,1749816640553,-460.0,0.00021369,4]
[365640056,1749816640562,-460.0,0.00021369,4]
[365640058,1749816640572,-460.0,0.00021369,4]
[365640060,1749816640582,-1212.34,0.00021369,4]
[365640062,1749816640592,-460.0,0.00021369,4]
[365640064,1749816640601,-1498.25,0.00021369,4]
[365640066,1749816640611,-460.0,0.00021369,4]
[365640069,1749816640621,-460.0,0.00021369,4]
[365640071,1749816640631,-460.0,0.00021369,4]
[365640072,1749816640642,-440.0,0.00021369,4]
[365640075,1749816640651,-460.0,0.00021369,4]
[365640077,1749816640661,-460.0,0.00021369,4]
[365640079,1749816640671,-574.01,0.00021369,4]
[365640081,1749816640680,-460.0,0.00021369,4]
[365640083,1749816640689,-440.0,0.00021369,4]
[365640085,1749816640699,-1531.91,0.00021369,4]
[365640086,1749816640708,-460.0,0.00021369,4]
[365640089,1749816640719,-460.0,0.00021369,4]
[365640091,1749816640730,-460.0,0.00021369,4]
[365640092,1749816640739,-440.0,0.00021369,4]
[365640094,1749816640748,-460.0,0.00021369,4]
[365640097,1749816640758,-460.0,0.00021369,4]
[365640099,1749816640768,-324.52716452,0.00021369,4]
[365640101,1749816640777,-460.0,0.00021369,4]
[365640103,1749816640787,-460.0,0.00021369,4]
[365640104,1749816640798,-460.0,0.00021369,4]
[365640107,1749816640808,-420.0,0.00021369,4]
[365640109,1749816640817,-460.0,0.00021369,4]
[365640111,1749816640826,-460.0,0.00021369,4]
[365640113,1749816640835,-460.0,0.00021369,4]
[365640115,1749816640845,-460.0,0.00021369,4]
[365640117,1749816640854,-460.0,0.00021369,4]
[365640119,1749816640863,-596.19,0.00021369,4]
[365640121,1749816640873,-460.0,0.00021369,4]
[365640123,1749816640882,-460.0,0.00021369,4]
[365640125,1749816640893,-460.0,0.00021369,4]
[365640127,1749816640902,-422.64601486,0.00021369,4]
[365640129,1749816640911,-420.0,0.00021369,4]
[365640131,1749816640920,-420.0,0.00021369,4]
[365640133,1749816640929,-420.0,0.00021369,4]
[365640135,1749816640939,-460.0,0.00021369,4]
[365640137,1749816640948,-460.0,0.00021369,4]
[365640139,1749816640957,-585.41,0.00021369,4]
[365640141,1749816640966,-580.13348515,0.00021369,4]
[365640143,1749816640975,-460.0,0.00021369,4]
[365640145,1749816640985,-460.0,0.00021369,4]
[365640147,1749816640994,-460.0,0.00021369,4]
[365640149,1749816641003,-188.54458764,0.00021369,4]
[365640151,1749816641013,-570.95645871,0.00021369,4]
[365640153,1749816641022,-460.0,0.00021369,4]
[365640155,1749816641031,-460.0,0.00021369,4]
[365640157,1749816641040,-420.0,0.00021369,4]
[365640159,1749816641049,-4164.15,0.00021369,4]
[365640161,1749816641059,-460.0,0.00021369,4]
[365640163,1749816641068,-420.0,0.00021369,4]
[365640165,1749816641078,-420.0,0.00021369,4]
[365640167,1749816641087,-460.0,0.00021369,4]
[365640169,1749816641096,-796.34,0.00021369,4]
[365640171,1749816641105,-460.0,0.00021369,4]
[365640172,1749816641115,-460.0,0.00021369,4]
[365640174,1749816641124,-400.0,0.00021369,4]
[365640177,1749816641133,-1005.96,0.00021369,4]
[365640178,1749816641145,-460.0,0.00021369,4]
[365640181,1749816641154,-440.0,0.00021369,4]
[365640182,1749816641163,-420.0,0.00021369,4]
[365640185,1749816641172,-932.64,0.00021369,4]
[365640186,1749816641181,-422.97104641,0.00021369,4]
[365640189,1749816641191,-1259.77,0.00021369,4]
[365640191,1749816641201,-440.0,0.00021369,4]
[365640193,1749816641210,-460.0,0.00021369,4]
[365640195,1749816641219,-1986.29,0.00021369,4]
[365640206,1749816641307,-250.5044559,0.00021369,4]
[365640208,1749816641317,-918.57,0.00021369,4]
[365640210,1749816641326,-460.0,0.00021369,4]
[365640212,1749816641336,-460.0,0.00021369,4]
[365640214,1749816641346,-410.0,0.00021369,4]
[365640216,1749816641355,-460.0,0.00021369,4]
[365640218,1749816641365,-460.0,0.00021369,4]
[365640220,1749816641374,-460.0,0.00021369,4]
[365640222,1749816641384,-460.0,0.00021369,4]
[365640224,1749816641398,-1111.62,0.00021369,4]
[365640226,1749816641408,-440.0,0.00021369,4]
[365640228,1749816641417,-460.0,0.00021369,4]
[365640230,1749816641427,-500.0,0.00021373,2]
[365640232,1749816641437,-500.0,0.00021373,2]
[365640234,1749816641446,-500.0,0.00021373,2]
[365640236,1749816641456,-500.0,0.00021373,2]
[365640238,1749816641466,-500.0,0.00021373,2]
[365640240,1749816641475,-215.0738,0.00021411,2]
[365640242,1749816641484,-1760.29086515,0.00021417,5]
[365640244,1749816641494,-549.4,0.00021542,4]
[365640246,1749816641503,-626.15,0.00021542,4]
[365640248,1749816641512,-500.0,0.00021542,4]
[365640250,1749816641522,-500.0,0.00021555,2]
[365640252,1749816641533,-1760.29086515,0.0002159,5]
[365640254,1749816641542,-5000.0,0.00021596,2]
[365640256,1749816641552,-11537.72206855,0.00021613,2]
[365640258,1749816641561,-1000.0,0.00021621,2]
[365640260,1749816641571,-1000.0,0.00021621,2]
[365640262,1749816641580,-1000.0,0.00021621,2]
[365640264,1749816641590,-1000.0290314,0.00021621,2]
[365640266,1749816641599,-1000.0,0.00021621,2]
[365640268,1749816641608,-1000.0,0.00021621,2]
[365640270,1749816641617,-1000.0,0.00021621,2]
[365640272,1749816641627,-500.42633644,0.00021621,2]
[365640274,1749816641636,-549.40032849,0.00021621,2]
[365640276,1749816641648,-1137.75669383,0.00021621,2]
[365640278,1749816641658,-1000.0,0.00021621,2]
[365640280,1749816641667,-1000.0,0.00021621,2]
[365640282,1749816641676,-1000.0,0.00021621,2]
[365640284,1749816641686,-1001.26058768,0.00021621,2]
[365640286,1749816641695,-420.0,0.00021626,2]
[365640288,1749816641704,-1558.89952756,0.0002163,2]
[365640290,1749816641713,-1069.92,0.00021642,2]
[365640292,1749816641726,-500.45770616,0.00021643,4]
[365640294,1749816641736,-400.0,0.00021643,4]
[365640296,1749816641745,-357.37092083,0.00021643,4]
[365640298,1749816641755,-400.0,0.00021643,4]
[365640300,1749816641765,-340.0,0.00021643,4]
[365640302,1749816641774,-460.0,0.00021643,4]
[365640304,1749816641783,-400.0,0.00021643,4]
[365640306,1749816641793,-460.0,0.00021643,4]
[365640308,1749816641803,-460.0,0.00021643,4]
[365640310,1749816641811,-311.85,0.00021643,4]
[365640312,1749816641820,-460.0,0.00021643,2]
[365640314,1749816641830,-460.0,0.00021643,4]
[365640316,1749816641840,-460.0,0.00021643,4]
[365640318,1749816641849,-460.0,0.00021643,4]
[365640320,1749816641859,-460.0,0.00021643,4]
[365640322,1749816641870,-460.0,0.00021643,4]
[365640324,1749816641880,-460.0,0.00021643,4]
[365640326,1749816641889,-253.52,0.00021643,4]
[365640328,1749816641899,-460.0,0.00021643,4]
[365640330,1749816641909,-460.0,0.00021643,4]
[365640333,1749816641918,-460.0,0.00021643,4]
[365640334,1749816641927,-1771.57,0.00021643,4]
[365640337,1749816641937,-460.0,0.00021643,4]
[365640339,1749816641946,-460.0,0.00021643,4]
[365640341,1749816641957,-460.0,0.00021643,4]
[365640343,1749816641966,-460.0,0.00021643,4]
[365640345,1749816641975,-420.0,0.00021643,4]
[365640347,1749816641985,-460.0,0.00021643,4]
[365640349,1749816641994,-460.0,0.00021643,4]
[365640351,1749816642003,-460.0,0.00021643,4]
[365640353,1749816642012,-460.0,0.00021643,4]
[365640355,1749816642022,-460.0,0.00021643,4]
[365640357,1749816642031,-460.0,0.00021643,4]
[365640359,1749816642040,-460.0,0.00021643,4]
[365640361,1749816642050,-460.0,0.00021643,4]
[365640363,1749816642059,-1212.34,0.00021643,4]
[365640365,1749816642068,-460.0,0.00021643,4]
[365640367,1749816642077,-1498.25,0.00021643,4]
[365640369,1749816642086,-460.0,0.00021643,4]
[365640371,1749816642095,-420.0,0.00021643,4]
[365640373,1749816642104,-460.0,0.00021643,4]
[365640375,1749816642114,-460.0,0.00021643,4]
[365640377,1749816642123,-400.0,0.00021643,4]
[365640379,1749816642132,-574.01,0.00021643,4]
[365640381,1749816642143,-460.0,0.00021643,4]
[365640383,1749816642152,-1531.91,0.00021643,4]
[365640385,1749816642161,-400.0,0.00021643,4]
[365640387,1749816642170,-326.45112566,0.00021643,4]
[365640389,1749816642179,-460.0,0.00021643,4]
[365640391,1749816642188,-460.0,0.00021643,4]
[365640393,1749816642198,-460.0,0.00021643,4]
[365640395,1749816642207,-417.80857932,0.00021643,4]
[365640397,1749816642216,-460.0,0.00021643,4]
[365640398,1749816642225,-460.0,0.00021643,4]
[365640399,1749816642234,-460.0,0.00021643,4]
[365640400,1749816642243,-460.0,0.00021643,4]
[365640401,1749816642252,-460.0,0.00021643,4]
[365640402,1749816642261,-460.0,0.00021643,4]
[365640403,1749816642269,-460.0,0.00021643,4]
[365640404,1749816642278,-596.19,0.00021643,4]
[365640405,1749816642288,-460.0,0.00021643,4]
[365640406,1749816642297,-460.0,0.00021643,4]
[365640407,1749816642306,-213.35698224,0.00021643,4]
[365640408,1749816642315,-460.0,0.00021643,4]
[365640409,1749816642324,-460.0,0.00021643,4]
[365640410,1749816642335,-585.41,0.00021643,4]
[365640411,1749816642343,-460.0,0.00021643,4]
[365640412,1749816642353,-269.92,0.00021643,4]
[365640413,1749816642362,-460.0,0.00021643,4]
[365640414,1749816642371,-460.0,0.00021643,4]
[365640415,1749816642380,-471.45768087,0.00021643,4]
[365640416,1749816642389,-4164.15,0.00021643,4]
[365640418,1749816642402,-380.0,0.00021643,4]
[365640420,1749816642412,-460.0,0.00021643,4]
[365640422,1749816642421,-796.34,0.00021643,4]
[365640423,1749816642430,-400.0,0.00021643,4]
[365640424,1749816642440,-460.0,0.00021643,4]
[365640425,1749816642449,-1005.96,0.00021643,4]
[365640427,1749816642459,-460.0,0.00021643,4]
[365640429,1749816642469,-932.64,0.00021643,4]
[365640430,1749816642479,-1259.77,0.00021643,4]
[365640431,1749816642489,-460.0,0.00021643,4]
[365640433,1749816642499,-1986.29,0.00021643,4]
[365640435,1749816642509,-918.57,0.00021643,4]
[365640437,1749816642519,-460.0,0.00021643,4]
[365640439,1749816642528,-400.0,0.00021643,4]
[365640441,1749816642538,-460.0,0.00021643,4]
[365640443,1749816642549,-460.0,0.00021643,4]
[365640445,1749816642559,-460.0,0.00021643,4]
[365640447,1749816642569,-460.0,0.00021643,4]
[365640448,1749816642579,-1111.62,0.00021643,4]
[365640449,1749816642590,-417.33201177,0.00021643,4]
[365640450,1749816642600,-626.15,0.00021683,4]
[365640451,1749816642610,-420.0,0.00021733,2]
[365640452,1749816642620,-1760.29086515,0.00021762,5]
[365640453,1749816642629,-1010.5898178,0.00021798,2]
[365640454,1749816642639,-1000.0,0.00021798,2]
[365640455,1749816642651,-508.266422,0.00021798,2]
[365640456,1749816642662,-1000.0,0.00021798,2]
[365640458,1749816642672,-503.92040479,0.00021798,2]
[365640460,1749816642682,-408.78426899,0.00021798,2]
[365640462,1749816642691,-249.91927789,0.00021798,2]
[365640465,1749816642701,-291.782355,0.000218,30]
[365640466,1749816642712,-1000.0,0.00021828,2]
[365640468,1749816642725,-501.69717948,0.00021892,2]
[365640470,1749816642735,-500.0,0.00021892,2]
[365640472,1749816642745,-481.99347231,0.00021892,2]
[365640474,1749816642753,-1069.92,0.00021916,2]
[365640476,1749816642763,-500.0,0.00021917,4]
[365640478,1749816642772,-460.0,0.00021917,4]
[365640480,1749816642782,-460.0,0.00021917,4]
[365640482,1749816642792,-380.0,0.00021917,4]
[365640484,1749816642802,-460.0,0.00021917,2]
[365640496,1749816642890,-460.0,0.00021917,4]
[365640498,1749816642901,-460.0,0.00021917,4]
[365640500,1749816642911,-500.0,0.00021917,2]
[365640502,1749816642920,-460.0,0.00021917,4]
[365640504,1749816642930,-460.0,0.00021917,4]
[365640506,1749816642940,-460.0,0.00021917,4]
[365640509,1749816642950,-460.0,0.00021917,4]
[365640512,1749816642960,-370.0,0.00021917,4]
[365640514,1749816642969,-460.0,0.00021917,4]
[365640516,1749816642979,-460.0,0.00021917,4]
[365640518,1749816642989,-1771.57,0.00021917,4]
[365640520,1749816642999,-460.0,0.00021917,4]